[Event "FIDE Grand Swiss 2023"]
[Site "Villa Marina, Douglas, Isle of Man, Isle Of Man"]
[Date "2023.10.26"]
[Round "2.53"]
[White "Rodrigue-Lemieux, Shawn"]
[Black "Sargsyan, Shant"]
[Result "1/2-1/2"]
[TimeControl "40/90 + 30 + 30s/move"]
[WhiteFideId "2620049"]
[BlackFideId "13306766"]
[WhiteElo "2488"]
[BlackElo "2631"]

1. e4 {[%clk 01:40:57]} {[%emt 00:00:02]} c5 {[%clk 01:39:22]} {[%emt
00:01:39]} 2. Nf3 {[%clk 01:41:17]} {[%emt 00:00:09]} d6 {[%clk 01:39:39]}
{[%emt 00:00:13]} 3. Bb5+ {[%clk 01:41:39]} {[%emt 00:00:08]} Nd7 {[%clk
01:39:15]} {[%emt 00:00:54]} 4. Ba4 {[%clk 01:41:20]} {[%emt 00:00:49]} Ngf6
{[%clk 01:38:24]} {[%emt 00:01:20]} 5. O-O {[%clk 01:40:56]} {[%emt 00:00:54]}
e6 {[%clk 01:38:09]} {[%emt 00:00:45]} 6. Re1 {[%clk 01:40:50]} {[%emt
00:00:36]} a6 {[%clk 01:37:33]} {[%emt 00:01:07]} 7. c4 {[%clk 01:40:29]}
{[%emt 00:00:50]} Be7 {[%clk 01:37:39]} {[%emt 00:00:24]} 8. Nc3 {[%clk
01:40:44]} {[%emt 00:00:15]} O-O {[%clk 01:37:37]} {[%emt 00:00:32]} 9. d4
{[%clk 01:39:23]} {[%emt 00:01:51]} cxd4 {[%clk 01:37:02]} {[%emt 00:01:06]} 10.
Nxd4 {[%clk 01:39:07]} {[%emt 00:00:45]} Ne5 {[%clk 01:37:05]} {[%emt
00:00:27]} 11. Qe2 {[%clk 01:38:27]} {[%emt 00:01:10]} Qb6 {[%clk 01:35:34]}
{[%emt 00:02:01]} 12. Rd1 {[%clk 01:34:33]} {[%emt 00:04:24]} Qc5 {[%clk
01:34:09]} {[%emt 00:01:54]} 13. Bb3 {[%clk 01:33:14]} {[%emt 00:01:49]} Bd7
{[%clk 01:34:29]} {[%emt 00:00:11]} 14. Be3 {[%clk 01:22:22]} {[%emt 00:11:22]}
Qc7 {[%clk 01:34:03]} {[%emt 00:00:56]} 15. h3 {[%clk 01:22:37]} {[%emt
00:00:15]} Rfc8 {[%clk 01:31:50]} {[%emt 00:02:43]} 16. Rac1 {[%clk 01:17:26]}
{[%emt 00:05:41]} Nxc4 {[%clk 01:24:38]} {[%emt 00:07:42]} 17. Bxc4 {[%clk
00:41:55]} {[%emt 00:36:00]} Qxc4 {[%clk 01:24:37]} {[%emt 00:00:31]} 18. Qf3
{[%clk 00:36:22]} {[%emt 00:06:03]} Qc7 {[%clk 01:15:03]} {[%emt 00:10:04]} 19.
Nd5 {[%clk 00:34:35]} {[%emt 00:02:17]} Qd8 {[%clk 01:14:58]} {[%emt 00:00:35]}
20. Nxe7+ {[%clk 00:34:52]} {[%emt 00:00:13]} Qxe7 {[%clk 01:15:19]} {[%emt
00:00:09]} 21. Ne2 {[%clk 00:31:01]} {[%emt 00:04:21]} Rxc1 {[%clk 01:05:38]}
{[%emt 00:10:12]} 22. Bxc1 {[%clk 00:30:44]} {[%emt 00:00:47]} Bc6 {[%clk
01:05:03]} {[%emt 00:01:06]} 23. Nc3 {[%clk 00:30:54]} {[%emt 00:00:19]} Rd8
{[%clk 01:00:15]} {[%emt 00:05:19]} 24. Qe3 {[%clk 00:27:56]} {[%emt 00:03:27]}
e5 {[%clk 00:56:29]} {[%emt 00:04:17]} 25. b3 {[%clk 00:23:29]} {[%emt
00:04:56]} Qe6 {[%clk 00:50:08]} {[%emt 00:06:51]} 26. Bb2 {[%clk 00:21:11]}
{[%emt 00:02:48]} h6 {[%clk 00:49:37]} {[%emt 00:01:03]} 27. f3 {[%clk
00:19:30]} {[%emt 00:02:09]} Rd7 {[%clk 00:46:07]} {[%emt 00:04:00]} 28. Rd2
{[%clk 00:16:55]} {[%emt 00:03:06]} Nh5 {[%clk 00:44:37]} {[%emt 00:02:01]} 29.
Ne2 {[%clk 00:16:21]} {[%emt 00:01:03]} f5 {[%clk 00:41:53]} {[%emt 00:03:15]}
30. exf5 {[%clk 00:15:52]} {[%emt 00:00:59]} Qxf5 {[%clk 00:42:11]} {[%emt
00:00:13]} 31. Kh2 {[%clk 00:16:04]} {[%emt 00:00:17]} Qg6 {[%clk 00:32:34]}
{[%emt 00:10:07]} 32. Qf2 {[%clk 00:13:16]} {[%emt 00:03:17]} Rf7 {[%clk
00:23:26]} {[%emt 00:09:38]} 33. Qh4 {[%clk 00:12:39]} {[%emt 00:01:07]} Bxf3
{[%clk 00:22:17]} {[%emt 00:01:40]} 34. gxf3 {[%clk 00:11:30]} {[%emt
00:01:38]} Rxf3 {[%clk 00:22:43]} {[%emt 00:00:04]} 35. Qg4 {[%clk 00:04:57]}
{[%emt 00:07:04]} Rf2+ {[%clk 00:17:32]} {[%emt 00:05:41]} 36. Kg1 {[%clk
00:05:13]} {[%emt 00:00:13]} Qf7 {[%clk 00:17:55]} {[%emt 00:00:08]} 37. Kh1
{[%clk 00:01:30]} {[%emt 00:04:13]} b5 {[%clk 00:12:52]} {[%emt 00:05:34]} 38.
Bc3 {[%clk 00:01:12]} {[%emt 00:00:47]} Nf6 {[%clk 00:11:29]} {[%emt 00:01:53]}
39. Qc8+ {[%clk 00:01:29]} {[%emt 00:00:13]} Kh7 {[%clk 00:11:51]} {[%emt
00:00:09]} 40. Qc6 {[%clk 00:01:03]} {[%emt 00:00:56]} d5 {[%clk 00:01:30]}
{[%emt 00:10:51]} 41. Ng1 {[%clk 00:36:35]} {[%emt 00:14:57]} Ne4 {[%clk
00:34:07]} {[%emt 00:17:54]} 42. Rxf2 {[%clk 00:36:46]} {[%emt 00:00:18]} Nxf2+
{[%clk 00:34:32]} {[%emt 00:00:05]} 43. Kg2 {[%clk 00:37:09]} {[%emt 00:00:06]}
Nd3 {[%clk 00:34:35]} {[%emt 00:00:27]} 44. Kh1 {[%clk 00:37:02]} {[%emt
00:00:36]} Nf2+ {[%clk 00:28:01]} {[%emt 00:07:05]} 45. Kg2 {[%clk 00:37:27]}
{[%emt 00:00:05]} Nd3 {[%clk 00:28:00]} {[%emt 00:00:32]} 46. Kh1 {[%clk
00:37:55]} {[%emt 00:00:01]} b4 {[%clk 00:26:58]} {[%emt 00:01:33]} 47. Bd2
{[%clk 00:34:25]} {[%emt 00:03:58]} a5 {[%clk 00:24:35]} {[%emt 00:02:54]} 48.
Qb5 {[%clk 00:32:18]} {[%emt 00:02:36]} Nf2+ {[%clk 00:17:21]} {[%emt
00:07:46]} 49. Kg2 {[%clk 00:31:23]} {[%emt 00:01:24]} Ne4 {[%clk 00:17:39]}
{[%emt 00:00:12]} 50. Be1 {[%clk 00:30:56]} {[%emt 00:00:57]} Qg6+ {[%clk
00:12:10]} {[%emt 00:06:00]} 51. Kh2 {[%clk 00:30:05]} {[%emt 00:01:20]} Nf6
{[%clk 00:09:11]} {[%emt 00:03:29]} 52. Qe2 {[%clk 00:25:23]} {[%emt 00:05:11]}
Qf5 {[%clk 00:09:23]} {[%emt 00:00:19]} 53. Nf3 {[%clk 00:20:53]} {[%emt
00:04:59]} e4 {[%clk 00:08:57]} {[%emt 00:00:57]} 54. Nh4 {[%clk 00:21:13]}
{[%emt 00:00:09]} Qe6 {[%clk 00:03:30]} {[%emt 00:05:57]} 1/2-1/2

[Event "FIDE Grand Swiss 2023"]
[Site "Villa Marina, Douglas, Isle of Man, Isle Of Man"]
[Date "2023.10.26"]
[Round "2.54"]
[White "Svane, Frederik"]
[Black "Krasenkow, Michal"]
[Result "1-0"]
[TimeControl "40/90 + 30 + 30s/move"]
[WhiteFideId "12923044"]
[BlackFideId "1113100"]
[WhiteElo "2626"]
[BlackElo "2531"]

1. e4 {[%clk 01:40:57]} {[%emt 00:00:03]} e5 {[%clk 01:40:55]} {[%emt
00:00:05]} 2. Nf3 {[%clk 01:41:21]} {[%emt 00:00:06]} Nf6 {[%clk 01:41:21]}
{[%emt 00:00:04]} 3. Nxe5 {[%clk 01:41:45]} {[%emt 00:00:06]} d6 {[%clk
01:41:48]} {[%emt 00:00:03]} 4. Nf3 {[%clk 01:42:08]} {[%emt 00:00:06]} Nxe4
{[%clk 01:42:15]} {[%emt 00:00:03]} 5. d4 {[%clk 01:42:32]} {[%emt 00:00:07]}
d5 {[%clk 01:42:40]} {[%emt 00:00:05]} 6. Bd3 {[%clk 01:42:58]} {[%emt
00:00:04]} Bd6 {[%clk 01:43:05]} {[%emt 00:00:05]} 7. O-O {[%clk 01:43:22]}
{[%emt 00:00:06]} O-O {[%clk 01:43:32]} {[%emt 00:00:03]} 8. c4 {[%clk
01:43:46]} {[%emt 00:00:06]} c6 {[%clk 01:43:58]} {[%emt 00:00:04]} 9. Qc2
{[%clk 01:44:12]} {[%emt 00:00:04]} h6 {[%clk 01:43:59]} {[%emt 00:00:29]} 10.
c5 {[%clk 01:44:37]} {[%emt 00:00:05]} Bc7 {[%clk 01:44:17]} {[%emt 00:00:12]}
11. Nc3 {[%clk 01:45:02]} {[%emt 00:00:04]} Bg4 {[%clk 01:42:42]} {[%emt
00:02:05]} 12. Nxe4 {[%clk 01:40:11]} {[%emt 00:05:22]} Bxf3 {[%clk 01:37:59]}
{[%emt 00:05:12]} 13. Nd6 {[%clk 01:34:32]} {[%emt 00:06:09]} Bxd6 {[%clk
01:36:38]} {[%emt 00:01:52]} 14. cxd6 {[%clk 01:34:56]} {[%emt 00:00:05]} Bg4
{[%clk 01:34:07]} {[%emt 00:03:01]} 15. Bf4 {[%clk 01:30:20]} {[%emt 00:05:07]}
Nd7 {[%clk 01:32:40]} {[%emt 00:01:57]} 16. Rae1 {[%clk 01:25:44]} {[%emt
00:05:05]} Re8 {[%clk 01:29:30]} {[%emt 00:03:40]} 17. Qc3 {[%clk 01:21:26]}
{[%emt 00:04:48]} Nf8 {[%clk 01:20:01]} {[%emt 00:09:59]} 18. h3 {[%clk
01:13:26]} {[%emt 00:08:30]} Bd7 {[%clk 01:14:53]} {[%emt 00:05:38]} 19. Bc2
{[%clk 01:11:16]} {[%emt 00:02:40]} Qh4 {[%clk 01:07:26]} {[%emt 00:07:56]} 20.
Bg3 {[%clk 01:10:15]} {[%emt 00:01:31]} Qf6 {[%clk 01:07:52]} {[%emt 00:00:04]}
21. Be5 {[%clk 01:08:26]} {[%emt 00:02:20]} Qh4 {[%clk 01:08:18]} {[%emt
00:00:05]} 22. Bg3 {[%clk 00:59:04]} {[%emt 00:09:51]} Qf6 {[%clk 01:08:40]}
{[%emt 00:00:08]} 23. Be5 {[%clk 00:55:37]} {[%emt 00:03:58]} Qh4 {[%clk
01:09:03]} {[%emt 00:00:06]} 24. a4 {[%clk 00:54:19]} {[%emt 00:01:49]} b6
{[%clk 00:59:19]} {[%emt 00:10:14]} 25. b4 {[%clk 00:50:46]} {[%emt 00:04:03]}
a5 {[%clk 00:39:42]} {[%emt 00:20:07]} 26. bxa5 {[%clk 00:43:36]} {[%emt
00:07:40]} Rxa5 {[%clk 00:40:06]} {[%emt 00:00:06]} 27. Bg3 {[%clk 00:32:48]}
{[%emt 00:11:18]} Qd8 {[%clk 00:40:12]} {[%emt 00:00:24]} 28. Rxe8 {[%clk
00:33:13]} {[%emt 00:00:06]} Bxe8 {[%clk 00:40:30]} {[%emt 00:00:12]} 29. Re1
{[%clk 00:33:38]} {[%emt 00:00:04]} Ra7 {[%clk 00:36:20]} {[%emt 00:04:40]} 30.
Qd3 {[%clk 00:31:28]} {[%emt 00:02:40]} f6 {[%clk 00:31:16]} {[%emt 00:05:34]}
31. Re3 {[%clk 00:29:46]} {[%emt 00:02:12]} Bf7 {[%clk 00:29:42]} {[%emt
00:02:04]} 32. Qe2 {[%clk 00:27:22]} {[%emt 00:02:54]} Qc8 {[%clk 00:28:11]}
{[%emt 00:02:01]} 33. Qf3 {[%clk 00:13:39]} {[%emt 00:14:12]} Bg6 {[%clk
00:21:59]} {[%emt 00:06:42]} 34. Bxg6 {[%clk 00:09:41]} {[%emt 00:04:28]} Nxg6
{[%clk 00:22:28]} {[%emt 00:00:02]} 35. Qe2 {[%clk 00:10:06]} {[%emt 00:00:05]}
Kf8 {[%clk 00:22:20]} {[%emt 00:00:38]} 36. Qc2 {[%clk 00:09:49]} {[%emt
00:00:47]} f5 {[%clk 00:20:31]} {[%emt 00:02:19]} 37. Rc3 {[%clk 00:07:18]}
{[%emt 00:03:02]} Qe6 {[%clk 00:19:21]} {[%emt 00:01:39]} 38. Rxc6 {[%emt
00:03:37]} f4 {[%clk 00:16:36]} {[%emt 00:03:13]} 39. d7 {[%clk 00:01:42]}
{[%emt 00:03:01]} Qxd7 {[%clk 00:16:38]} {[%emt 00:00:28]} 40. Rxg6 {[%clk
00:01:38]} {[%emt 00:00:34]} fxg3 {[%clk 00:17:02]} {[%emt 00:00:06]} 41. Rxg3
{[%clk 00:50:07]} {[%emt 00:02:01]} Kg8 {[%clk 01:06:51]} {[%emt 00:00:41]} 42.
Rc3 {[%clk 00:43:59]} {[%emt 00:06:38]} Ra8 {[%clk 01:07:04]} {[%emt 00:00:17]}
43. Rc6 {[%clk 00:41:15]} {[%emt 00:03:14]} Qe8 {[%clk 01:03:38]} {[%emt
00:03:56]} 44. g3 {[%clk 00:14:41]} {[%emt 00:27:04]} Kh8 {[%clk 01:00:48]}
{[%emt 00:03:20]} 45. Kg2 {[%clk 00:13:35]} {[%emt 00:01:36]} Kg8 {[%clk
01:00:22]} {[%emt 00:00:57]} 46. h4 {[%clk 00:13:15]} {[%emt 00:00:50]} h5
{[%clk 00:53:05]} {[%emt 00:07:47]} 47. Kh2 {[%clk 00:12:06]} {[%emt 00:01:39]}
Qf8 {[%clk 00:49:08]} {[%emt 00:04:26]} 48. Qe2 {[%clk 00:06:08]} {[%emt
00:06:28]} Rxa4 {[%clk 00:47:53]} {[%emt 00:01:46]} 49. Re6 {[%clk 00:05:17]}
{[%emt 00:01:21]} Ra8 {[%clk 00:46:35]} {[%emt 00:01:49]} 50. Kg2 {[%clk
00:05:40]} {[%emt 00:00:07]} Qf7 {[%clk 00:41:53]} {[%emt 00:05:11]} 51. Re7
{[%clk 00:05:06]} {[%emt 00:01:04]} Qg6 {[%clk 00:40:28]} {[%emt 00:01:54]} 52.
Re5 {[%clk 00:05:13]} {[%emt 00:00:23]} Rd8 {[%clk 00:35:45]} {[%emt 00:05:14]}
53. Rxh5 {[%clk 00:04:51]} {[%emt 00:00:51]} b5 {[%clk 00:35:35]} {[%emt
00:00:40]} 54. Re5 {[%clk 00:03:44]} {[%emt 00:01:37]} b4 {[%clk 00:32:17]}
{[%emt 00:03:49]} 55. Re6 {[%clk 00:04:05]} {[%emt 00:00:08]} Qb1 {[%clk
00:27:38]} {[%emt 00:05:09]} 56. Re7 {[%clk 00:04:23]} {[%emt 00:00:12]} Qg6
{[%clk 00:26:16]} {[%emt 00:01:52]} 57. Re6 {[%clk 00:04:27]} {[%emt 00:00:26]}
Qb1 {[%clk 00:26:36]} {[%emt 00:00:10]} 58. Qg4 {[%clk 00:03:39]} {[%emt
00:01:17]} Qc1 {[%clk 00:25:57]} {[%emt 00:01:09]} 59. Rb6 {[%clk 00:02:36]}
{[%emt 00:01:34]} Rf8 {[%clk 00:25:46]} {[%emt 00:00:41]} 60. Qe6+ {[%clk
00:01:31]} {[%emt 00:01:35]} Kh8 {[%clk 00:25:36]} {[%emt 00:00:40]} 61. Qe7
{[%clk 00:01:26]} {[%emt 00:00:34]} Kg8 {[%clk 00:25:03]} {[%emt 00:01:05]} 62.
Rb7 {[%clk 00:14:14]} {[%emt 00:02:42]} Qh6 {[%clk 00:40:21]} {[%emt 00:00:11]}
63. Qg5 {[%clk 00:10:48]} {[%emt 00:03:55]} Qh7 {[%clk 00:39:05]} {[%emt
00:01:47]} 64. Qxd5+ {[%clk 00:10:50]} {[%emt 00:00:29]} Kh8 {[%clk 00:39:33]}
65. Qe5 {[%clk 00:09:47]} {[%emt 00:01:31]} Qg6 {[%clk 00:38:37]} {[%emt
00:01:28]} 66. Rxb4 {[%clk 00:08:15]} {[%emt 00:02:03]} Qc2 {[%clk 00:38:37]}
{[%emt 00:00:30]} 67. Qe3 {[%clk 00:08:27]} {[%emt 00:00:17]} Qc6+ {[%clk
00:38:43]} {[%emt 00:00:26]} 68. Kg1 {[%clk 00:08:44]} {[%emt 00:00:10]} Rf3
{[%clk 00:38:04]} {[%emt 00:01:12]} 69. Rb8+ {[%clk 00:07:29]} {[%emt
00:01:45]} Kh7 {[%clk 00:38:33]} 70. Qg5 {[%clk 00:07:40]} {[%emt 00:00:12]}
1-0

[Event "FIDE Grand Swiss 2023"]
[Site "Villa Marina, Douglas, Isle of Man, Isle Of Man"]
[Date "2023.10.26"]
[Round "2.55"]
[White "Kuzubov, Yuriy"]
[Black "Greenfeld, Alon"]
[Result "1/2-1/2"]
[TimeControl "40/90 + 30 + 30s/move"]
[WhiteFideId "14112906"]
[BlackFideId "2800039"]
[WhiteElo "2625"]
[BlackElo "2455"]

1. d4 {[%clk 01:40:56]} {[%emt 00:00:02]} Nf6 {[%clk 01:39:08]} {[%emt
00:01:53]} 2. c4 {[%clk 01:41:19]} {[%emt 00:00:07]} c5 {[%clk 01:38:41]}
{[%emt 00:00:57]} 3. d5 {[%clk 01:41:34]} {[%emt 00:00:14]} g6 {[%clk
01:38:12]} {[%emt 00:01:00]} 4. Nc3 {[%clk 01:39:44]} {[%emt 00:02:19]} Bg7
{[%clk 01:38:19]} {[%emt 00:00:23]} 5. e4 {[%clk 01:39:21]} {[%emt 00:00:53]}
d6 {[%clk 01:37:45]} {[%emt 00:01:04]} 6. Bd3 {[%clk 01:36:42]} {[%emt
00:03:09]} O-O {[%clk 01:36:59]} {[%emt 00:01:17]} 7. h3 {[%clk 01:37:06]}
{[%emt 00:00:04]} e6 {[%clk 01:36:42]} {[%emt 00:00:48]} 8. Nf3 {[%clk
01:37:30]} {[%emt 00:00:06]} exd5 {[%clk 01:36:43]} {[%emt 00:00:30]} 9. exd5
{[%clk 01:37:54]} {[%emt 00:00:05]} Re8+ {[%clk 01:36:13]} {[%emt 00:01:00]} 10.
Be3 {[%clk 01:38:18]} {[%emt 00:00:06]} Rxe3+ {[%clk 01:36:14]} {[%emt
00:00:30]} 11. fxe3 {[%clk 01:38:43]} {[%emt 00:00:05]} Qe7 {[%clk 01:36:12]}
{[%emt 00:00:32]} 12. O-O {[%clk 01:31:03]} {[%emt 00:08:09]} Nbd7 {[%clk
01:36:08]} {[%emt 00:00:35]} 13. Qd2 {[%clk 01:15:14]} {[%emt 00:16:18]} Nh5
{[%clk 01:36:01]} {[%emt 00:00:37]} 14. Qf2 {[%clk 01:00:02]} {[%emt 00:15:42]}
Ne5 {[%clk 01:33:23]} {[%emt 00:03:09]} 15. Be2 {[%clk 00:57:36]} {[%emt
00:02:55]} Nxf3+ {[%clk 01:30:01]} {[%emt 00:03:52]} 16. Bxf3 {[%clk 00:58:00]}
{[%emt 00:00:07]} Nf6 {[%clk 01:30:23]} {[%emt 00:00:08]} 17. Rae1 {[%clk
00:48:24]} {[%emt 00:10:05]} Nd7 {[%clk 01:18:07]} {[%emt 00:12:47]} 18. Bg4
{[%clk 00:45:52]} {[%emt 00:03:01]} f5 {[%clk 00:40:12]} {[%emt 00:38:25]} 19.
Bd1 {[%clk 00:46:08]} {[%emt 00:00:14]} Ne5 {[%clk 00:34:46]} {[%emt 00:05:57]}
20. Qe2 {[%clk 00:43:19]} {[%emt 00:03:18]} Bd7 {[%clk 00:30:23]} {[%emt
00:04:54]} 21. e4 {[%clk 00:41:52]} {[%emt 00:01:57]} f4 {[%clk 00:30:26]}
{[%emt 00:00:27]} 22. Rxf4 {[%clk 00:41:15]} {[%emt 00:01:07]} Qg5 {[%clk
00:30:26]} {[%emt 00:00:30]} 23. Ref1 {[%clk 00:21:36]} {[%emt 00:20:08]} Bxh3
{[%clk 00:30:08]} {[%emt 00:00:48]} 24. Nb5 {[%clk 00:20:15]} {[%emt 00:01:52]}
Rd8 {[%clk 00:15:02]} {[%emt 00:15:35]} 25. Nc7 {[%clk 00:07:33]} {[%emt
00:13:12]} Nd3 {[%clk 00:06:23]} {[%emt 00:09:08]} 26. R4f3 {[%clk 00:01:57]}
{[%emt 00:06:07]} Nc1 {[%clk 00:06:15]} {[%emt 00:00:39]} 27. Qc2 {[%clk
00:01:50]} {[%emt 00:00:36]} Bd4+ {[%clk 00:06:19]} {[%emt 00:00:27]} 28. Kh1
{[%clk 00:01:51]} {[%emt 00:00:28]} Bg4 {[%clk 00:05:10]} {[%emt 00:01:39]} 29.
g3 {[%clk 00:00:56]} {[%emt 00:01:25]} Qh6+ {[%clk 00:04:01]} {[%emt 00:01:39]}
30. Qh2 {[%clk 00:01:17]} {[%emt 00:00:09]} Qxh2+ {[%clk 00:04:15]} {[%emt
00:00:17]} 31. Kxh2 {[%clk 00:01:43]} {[%emt 00:00:03]} Bxf3 {[%clk 00:04:39]}
{[%emt 00:00:06]} 32. Bxf3 {[%clk 00:00:40]} {[%emt 00:01:33]} Nd3 {[%clk
00:03:39]} {[%emt 00:01:31]} 33. Ne6 {[%clk 00:00:52]} {[%emt 00:00:18]} Re8
{[%clk 00:04:00]} {[%emt 00:00:09]} 34. b3 {[%clk 00:00:38]} {[%emt 00:00:44]}
Nb4 {[%clk 00:02:26]} {[%emt 00:02:04]} 35. a3 {[%clk 00:00:43]} {[%emt
00:00:25]} Nc2 {[%clk 00:02:46]} {[%emt 00:00:10]} 36. b4 {[%clk 00:00:39]}
{[%emt 00:00:34]} b6 {[%clk 00:01:27]} {[%emt 00:01:49]} 37. bxc5 {[%clk
00:00:49]} {[%emt 00:00:20]} bxc5 {[%clk 00:01:36]} {[%emt 00:00:20]} 38. Be2
{[%clk 00:00:36]} {[%emt 00:00:43]} Be5 {[%clk 00:01:46]} {[%emt 00:00:20]} 39.
Rb1 {[%clk 00:00:38]} {[%emt 00:00:29]} Nd4 {[%clk 00:01:38]} {[%emt 00:00:38]}
40. Nxd4 {[%clk 00:00:41]} {[%emt 00:00:27]} Bxd4 {[%clk 00:01:40]} {[%emt
00:00:28]} 41. Bf3 {[%clk 00:00:47]} {[%emt 00:00:23]} Kf7 {[%clk 00:00:58]}
{[%emt 00:01:12]} 42. Kg2 {[%clk 00:00:37]} {[%emt 00:00:40]} 1/2-1/2

[Event "FIDE Grand Swiss 2023"]
[Site "Villa Marina, Douglas, Isle of Man, Isle Of Man"]
[Date "2023.10.26"]
[Round "2.56"]
[White "Wu, Li"]
[Black "Theodorou, Nikolas"]
[Result "1/2-1/2"]
[TimeControl "40/90 + 30 + 30s/move"]
[WhiteFideId "411086"]
[BlackFideId "4262875"]
[WhiteElo "2303"]
[BlackElo "2619"]

1. d4 {[%clk 01:40:57]} {[%emt 00:00:03]} Nf6 {[%clk 01:40:54]} {[%emt
00:00:06]} 2. c4 {[%clk 01:41:20]} {[%emt 00:00:07]} e6 {[%clk 01:41:16]}
{[%emt 00:00:08]} 3. Nc3 {[%clk 01:41:33]} {[%emt 00:00:17]} Bb4 {[%clk
01:41:30]} {[%emt 00:00:16]} 4. Qc2 {[%clk 01:41:45]} {[%emt 00:00:18]} d5
{[%clk 01:39:40]} {[%emt 00:02:19]} 5. a3 {[%clk 01:41:21]} {[%emt 00:00:55]}
Bxc3+ {[%clk 01:39:41]} {[%emt 00:00:29]} 6. Qxc3 {[%clk 01:41:45]} {[%emt
00:00:06]} dxc4 {[%clk 01:40:01]} {[%emt 00:00:09]} 7. Qxc4 {[%clk 01:41:54]}
{[%emt 00:00:22]} b6 {[%clk 01:40:21]} {[%emt 00:00:10]} 8. Nf3 {[%clk
01:40:34]} {[%emt 00:01:50]} Ba6 {[%clk 01:37:21]} {[%emt 00:03:30]} 9. Qa4+
{[%clk 01:39:30]} {[%emt 00:01:34]} Qd7 {[%clk 01:37:04]} {[%emt 00:00:46]} 10.
Qxd7+ {[%clk 01:37:00]} {[%emt 00:03:01]} Nbxd7 {[%clk 01:37:31]} {[%emt
00:00:03]} 11. b4 {[%clk 01:30:15]} {[%emt 00:07:16]} Ke7 {[%clk 01:34:19]}
{[%emt 00:03:41]} 12. Bg5 {[%clk 01:23:10]} {[%emt 00:07:35]} Rhc8 {[%clk
01:30:14]} {[%emt 00:04:35]} 13. Ne5 {[%clk 01:07:25]} {[%emt 00:16:15]} c5
{[%clk 01:28:50]} {[%emt 00:01:55]} 14. Nxd7 {[%clk 01:06:32]} {[%emt
00:01:23]} Kxd7 {[%clk 01:29:16]} {[%emt 00:00:03]} 15. Bxf6 {[%clk 01:06:55]}
{[%emt 00:00:06]} gxf6 {[%clk 01:29:42]} {[%emt 00:00:05]} 16. dxc5 {[%clk
01:05:57]} {[%emt 00:01:28]} bxc5 {[%clk 01:30:09]} {[%emt 00:00:03]} 17. h4
{[%clk 01:05:13]} {[%emt 00:01:14]} Bb7 {[%clk 01:19:33]} {[%emt 00:11:07]} 18.
Rh3 {[%clk 01:03:08]} {[%emt 00:02:35]} cxb4 {[%clk 01:15:33]} {[%emt
00:04:30]} 19. axb4 {[%clk 01:03:33]} {[%emt 00:00:05]} Rc4 {[%clk 01:16:00]}
{[%emt 00:00:03]} 20. b5 {[%clk 00:49:28]} {[%emt 00:14:34]} Rb4 {[%clk
01:16:16]} {[%emt 00:00:14]} 21. Rha3 {[%clk 00:48:08]} {[%emt 00:01:51]} Kc7
{[%clk 00:53:07]} {[%emt 00:23:38]} 22. e3 {[%clk 00:47:09]} {[%emt 00:01:29]}
Kb6 {[%clk 00:52:18]} {[%emt 00:01:19]} 23. g3 {[%clk 00:45:49]} {[%emt
00:01:50]} Rb2 {[%clk 00:51:54]} {[%emt 00:00:54]} 24. R3a2 {[%clk 00:40:15]}
{[%emt 00:06:04]} Rxa2 {[%clk 00:51:20]} {[%emt 00:01:04]} 25. Rxa2 {[%clk
00:40:43]} {[%emt 00:00:02]} Rc8 {[%clk 00:51:31]} {[%emt 00:00:19]} 26. Kd2
{[%clk 00:36:45]} {[%emt 00:04:27]} h6 {[%clk 00:51:10]} {[%emt 00:00:51]} 27.
Bd3 {[%clk 00:36:41]} {[%emt 00:00:35]} f5 {[%clk 00:50:26]} {[%emt 00:01:14]}
28. Ra4 {[%clk 00:35:51]} {[%emt 00:01:20]} Rd8 {[%clk 00:45:30]} {[%emt
00:05:26]} 29. Kc3 {[%clk 00:33:30]} {[%emt 00:02:51]} Rc8+ {[%clk 00:45:47]}
{[%emt 00:00:13]} 30. Kd2 {[%clk 00:33:02]} {[%emt 00:00:58]} Rd8 {[%clk
00:35:40]} {[%emt 00:10:37]} 31. Kc3 {[%clk 00:32:59]} {[%emt 00:00:33]} Bf3
{[%clk 00:35:51]} {[%emt 00:00:19]} 32. Ra6+ {[%clk 00:32:19]} {[%emt
00:01:11]} Kb7 {[%clk 00:36:15]} {[%emt 00:00:06]} 33. Ra4 {[%clk 00:31:46]}
{[%emt 00:01:03]} Rc8+ {[%clk 00:35:49]} {[%emt 00:00:55]} 34. Rc4 {[%clk
00:30:58]} {[%emt 00:01:18]} Rd8 {[%clk 00:30:49]} {[%emt 00:05:30]} 35. Rd4
{[%clk 00:30:06]} {[%emt 00:01:22]} Bd5 {[%clk 00:30:16]} {[%emt 00:01:03]} 36.
Bc4 {[%clk 00:26:26]} {[%emt 00:04:10]} Rc8 {[%clk 00:23:47]} {[%emt 00:06:59]}
1/2-1/2